fUSD/lending_fUSD_20240301
["ID","MTS","AMOUNT","RATE_DAILY","PERIOD"]
[315965447,1709305873782,-500.0,0.00022356,2]
[315965448,1709305873792,-550.42,0.00022356,2]
[315965449,1709305873801,-514.22,0.00022356,2]
[315965450,1709305873810,-500.0,0.00022356,2]
[315965451,1709305873819,-500.0,0.00022356,2]
[315965452,1709305873829,-500.0,0.00022356,2]
[315965453,1709305873838,-500.0,0.00022356,2]
[315965454,1709305873847,-613.29,0.00022356,2]
[315965455,1709305873857,-500.0,0.00022356,2]
[315965456,1709305873867,-500.0,0.00022356,2]
[315965457,1709305873876,-500.0,0.00022356,2]
[315965458,1709305873885,-500.0,0.00022356,2]
[315965459,1709305873894,-518.84,0.00022356,2]
[315965460,1709305873903,-500.0,0.00022356,2]
[315965461,1709305873912,-500.0,0.00022356,2]
[315965462,1709305873921,-273.28,0.00022356,2]
[315965463,1709305873932,-500.0,0.00022356,2]
[315965464,1709305873941,-500.0,0.00022356,2]
[315965465,1709305873950,-500.0,0.00022356,2]
[315965466,1709305873960,-500.0,0.00022356,2]
[315965467,1709305873969,-607.56,0.00022356,2]
[315965468,1709305873979,-500.0,0.00022356,2]
[315965469,1709305873990,-500.0,0.00022356,2]
[315965470,1709305874001,-500.0,0.00022356,2]
[315965471,1709305874011,-999.79,0.00022356,2]
[315965472,1709305874021,-446.44838634,0.00022356,2]
[315965473,1709305874031,-772.36,0.00022356,2]
[315965474,1709305874040,-500.0,0.00022356,2]
[315965475,1709305874049,-500.0,0.00022356,2]
[315965476,1709305874059,-500.0,0.00022356,2]
[315965477,1709305874069,-500.0,0.00022356,2]
[315965478,1709305874079,-500.0,0.00022356,2]
[315965479,1709305874088,-500.0,0.00022356,2]
[315965480,1709305874098,-500.0,0.00022356,2]
[315965481,1709305874109,-500.0,0.00022356,2]
[315965482,1709305874119,-500.0,0.00022356,2]
[315965483,1709305874129,-500.0,0.00022356,2]
[315965484,1709305874139,-502.86,0.00022356,2]
[315965485,1709305874148,-500.0,0.00022356,2]
[315965486,1709305874158,-500.0,0.00022356,2]
[315965487,1709305874167,-795.21,0.00022356,2]
[315965488,1709305874178,-500.0,0.00022356,2]
[315965489,1709305874188,-544.54917716,0.00022356,2]
[315965490,1709305874198,-500.0,0.00022356,2]
[315965491,1709305874208,-1168.03,0.00022356,2]
[315965492,1709305874218,-500.0,0.00022356,2]
[315965493,1709305874227,-500.0,0.00022356,2]
[315965494,1709305874236,-500.0,0.00022356,2]
[315965495,1709305874246,-500.0,0.00022356,2]
[315965496,1709305874258,-500.0,0.00022356,2]
[315965497,1709305874268,-500.0,0.00022356,2]
[315965498,1709305874278,-788.32,0.00022356,2]
[315965499,1709305874288,-544.82,0.00022356,2]
[315965500,1709305874297,-500.0,0.00022356,2]
[315965501,1709305874306,-500.0,0.00022356,2]
[315965502,1709305874315,-500.0,0.00022356,2]
[315965503,1709305874325,-164.84,0.00022356,2]
[315965504,1709305874335,-439.81569686,0.00022356,2]
[315965505,1709305874346,-500.0,0.00022356,2]
[315965506,1709305874355,-500.0,0.00022356,2]
[315965507,1709305874365,-500.0,0.00022356,2]
[315965508,1709305874379,-500.0,0.00022356,2]
[315965509,1709305874389,-731.75,0.00022356,2]
[315965510,1709305874398,-500.0,0.00022356,2]
[315965511,1709305874407,-500.0,0.00022356,2]
[315965512,1709305874664,-500.0,0.00022356,2]
[315965513,1709305874674,-500.0,0.00022356,2]
[315965514,1709305874684,-500.0,0.00022356,2]
[315965515,1709305874693,-500.0,0.00022356,2]
[315965516,1709305874704,-500.0,0.00022356,2]
[315965517,1709305874713,-500.0,0.00022356,2]
[315965518,1709305874723,-500.0,0.00022356,2]
[315965519,1709305874732,-500.0,0.00022356,2]
[315965520,1709305874741,-500.0,0.00022356,2]
[315965521,1709305874751,-500.0,0.00022356,2]
[315965522,1709305874762,-989.93,0.00022356,2]
[315965523,1709305874771,-500.0,0.00022356,2]
[315965524,1709305874780,-500.0,0.00022356,2]
[315965525,1709305874789,-1062.73,0.00022356,2]
[315965526,1709305874798,-500.0,0.00022356,2]
[315965527,1709305874807,-500.0,0.00022356,2]
[315965528,1709305874816,-823.27,0.00022356,2]
[315965529,1709305874825,-500.0,0.00022356,2]
[315965530,1709305874834,-500.0,0.00022356,2]
[315965531,1709305874843,-500.0,0.00022356,2]
[315965532,1709305874852,-500.0,0.00022356,2]
[315965533,1709305874861,-500.0,0.00022356,2]
[315965534,1709305874871,-500.0,0.00022356,2]
[315965535,1709305874879,-500.0,0.00022356,2]
[315965536,1709305874888,-395.53729925,0.00022356,2]
[315965537,1709305874897,-500.0,0.00022356,2]
[315965538,1709305874906,-500.0,0.00022356,2]
[315965539,1709305874915,-500.0,0.00022356,2]
[315965540,1709305874924,-500.0,0.00022356,2]
[315965541,1709305874933,-500.0,0.00022356,2]
[315965542,1709305874942,-791.01,0.00022356,2]
[315965543,1709305874951,-500.0,0.00022356,2]
[315965544,1709305874960,-500.0,0.00022356,2]
[315965545,1709305874969,-1594.75,0.00022356,2]
[315965546,1709305874979,-500.0,0.00022356,2]
[315965547,1709305874988,-500.0,0.00022356,2]
[315965548,1709305874997,-500.0,0.00022356,2]
[315965549,1709305875008,-500.0,0.00022356,2]
[315965550,1709305875017,-505.03,0.00022356,2]
[315965551,1709305875026,-500.0,0.00022356,2]
[315965552,1709305875035,-500.0,0.00022356,2]
[315965553,1709305875044,-747.13,0.00022356,2]
[315965554,1709305875054,-500.0,0.00022356,2]
[315965555,1709305875063,-534.78,0.00022356,2]
[315965556,1709305875072,-1220.65,0.00022356,2]
[315965557,1709305875082,-740.01,0.00022356,2]
[315965558,1709305875091,-1099.67,0.00022356,2]
[315965559,1709305875101,-500.0,0.00022356,2]
[315965560,1709305875111,-500.0,0.00022356,2]
[315965561,1709305875121,-674.07,0.00022356,2]
[315965562,1709305875130,-5580.51,0.00022356,2]
[315965563,1709305875139,-500.0,0.00022356,2]
[315965564,1709305875149,-5289.69,0.00022356,2]
[315965565,1709305875158,-4403.01,0.00022356,2]
[315965566,1709305875168,-681.13,0.00022356,2]
[315965567,1709305875178,-1257.15,0.00022356,2]
[315965568,1709305875187,-500.0,0.00022356,2]
[315965569,1709305875196,-500.0,0.00022356,2]
[315965570,1709305875205,-857.05,0.00022356,2]
[315965571,1709305875215,-590.84,0.00022356,2]
[315965572,1709305875223,-1083.41,0.00022356,2]
[315965573,1709305875232,-500.0,0.00022356,2]
[315965574,1709305875241,-755.22,0.00022356,2]
[315965575,1709305875250,-500.0,0.00022356,2]
[315965576,1709305875261,-500.0,0.00022356,2]
[315965577,1709305875271,-500.0,0.00022356,2]
[315965578,1709305875280,-500.0,0.00022356,2]
[315965579,1709305875288,-1214.42,0.00022356,2]
[315965580,1709305875297,-500.0,0.00022356,2]
[315965581,1709305875307,-500.0,0.00022356,2]
[315965582,1709305875316,-3690.87,0.00022356,2]
[315965583,1709305875325,-500.0,0.00022356,2]
[315965584,1709305875334,-500.0,0.00022356,2]
[315965585,1709305875344,-3371.79,0.00022356,2]
[315965586,1709305875353,-1351.2,0.00022356,2]
[315965587,1709305875362,-803.59,0.00022356,2]
[315965588,1709305875374,-500.0,0.00022356,2]
[315965589,1709305875383,-646.81,0.00022356,2]
[315965590,1709305875392,-500.0,0.00022356,2]
[315965591,1709305875401,-500.0,0.00022356,2]
[315965592,1709305875410,-500.0,0.00022356,2]
[315965593,1709305875419,-726.61,0.00022356,2]
[315965594,1709305875428,-727.86,0.00022356,2]
[315965595,1709305875438,-500.0,0.00022356,2]
[315965596,1709305875449,-500.0,0.00022356,2]
[315965597,1709305875458,-2141.73,0.00022356,2]
[315965598,1709305875467,-559.99,0.00022356,2]
[315965599,1709305875476,-500.0,0.00022356,2]
[315965600,1709305875486,-151.0,0.00022356,7]
[315965601,1709305875495,-500.0,0.00022356,2]
[315965602,1709305875504,-1036.68,0.00022356,2]
[315965603,1709305875515,-2298.42,0.00022356,2]
[315965604,1709305875524,-500.0,0.00022356,2]
[315965605,1709305875533,-1315.55,0.00022356,2]
[315965606,1709305875543,-895.66,0.00022356,2]
[315965607,1709305875552,-500.0,0.00022356,2]
[315965608,1709305875563,-500.0,0.00022356,2]
[315965609,1709305875573,-870.51,0.00022356,2]
[315965610,1709305875582,-151.0,0.00022356,7]
[315965611,1709305875591,-693.44,0.00022356,2]
[315965612,1709305875600,-500.0,0.00022356,2]
[315965613,1709305875610,-735.48,0.00022356,2]
[315965614,1709305875619,-500.0,0.00022356,2]
[315965615,1709305875628,-5334.59,0.00022356,2]
[315965616,1709305875638,-881.39,0.00022356,2]
[315965617,1709305875647,-1134.58,0.00022356,2]
[315965618,1709305875656,-1102.85,0.00022356,2]
[315965619,1709305875666,-500.0,0.00022356,2]
[315965620,1709305875675,-500.0,0.00022356,2]
[315965621,1709305875684,-772.72,0.00022356,2]
[315965622,1709305875694,-3217.72,0.00022356,2]
[315965623,1709305875704,-151.0,0.00022356,7]
[315965624,1709305875714,-674.03,0.00022356,2]
[315965625,1709305875723,-734.83,0.00022356,2]
[315965626,1709305875733,-4071.64,0.00022356,2]
[315965627,1709305875742,-151.0,0.00022356,7]
[315965628,1709305875751,-500.0,0.00022356,2]
[315965629,1709305875762,-515.7300988,0.00022356,2]
[315965630,1709305875771,-500.0,0.00022356,2]
[315965631,1709305875781,-1336.48,0.00022356,2]
[315965632,1709305875790,-500.0,0.00022356,2]
[315965633,1709305875800,-6633.72,0.00022356,2]
[315965634,1709305875810,-2034.0,0.00022356,2]
[315965635,1709305875819,-500.0,0.00022356,2]
[315965636,1709305875828,-653.13,0.00022356,2]
[315965637,1709305875838,-268.72,0.00022356,2]
[315965638,1709305875847,-1007.25,0.00022356,2]
[315965639,1709305875856,-500.0,0.00022356,2]
[315965640,1709305875865,-1199.02,0.00022356,2]
[315965641,1709305875875,-1531.1,0.00022356,2]
[315965642,1709305875884,-500.0,0.00022356,2]
[315965643,1709305875893,-1053.76,0.00022356,2]
[315965644,1709305875903,-500.0,0.00022356,2]
[315965645,1709305875912,-7052.62,0.00022356,2]
[315965646,1709305875921,-880.94,0.00022356,2]
[315965647,1709305875931,-296.997032,0.00022356,7]
[315965648,1709305875940,-793.6,0.00022356,2]
[315965649,1709305875949,-4970.95,0.00022356,2]
[315965650,1709305875959,-500.0,0.00022356,2]
[315965651,1709305875968,-296.997032,0.00022356,7]
[315965652,1709305875978,-567.08,0.00022356,2]
[315965653,1709305875987,-500.0,0.00022356,2]
[315965654,1709305875997,-1404.44,0.00022356,2]
[315965655,1709305876008,-500.0,0.00022356,2]
[315965656,1709305876018,-1716.84,0.00022356,2]
[315965657,1709305876027,-1301.46,0.00022356,2]
[315965658,1709305876037,-632.56,0.00022356,2]
[315965659,1709305876047,-844.86,0.00022356,2]
[315965660,1709305876056,-1873.71,0.00022356,2]
[315965661,1709305876066,-500.0,0.00022356,2]
[315965662,1709305876075,-1094.87,0.00022356,2]
[315965663,1709305876085,-543.71,0.00022356,2]
[315965664,1709305876095,-1348.78,0.00022356,2]
[315965665,1709305876105,-1253.26,0.00022356,2]
[315965666,1709305876114,-517.7,0.00022356,2]
[315965667,1709305876124,-829.71,0.00022356,2]
[315965668,1709305876133,-1978.87,0.00022356,2]
[315965669,1709305876154,-500.0,0.00022356,2]
[315965670,1709305876171,-500.0,0.00022356,2]
[315965671,1709305876184,-5780.97,0.00022356,2]
[315965672,1709305876201,-500.0,0.00022356,2]
[315965673,1709305876218,-1128.32,0.00022356,2]
[315965674,1709305876234,-595.79,0.00022356,2]
[315965675,1709305876247,-900.35,0.00022356,2]
[315965676,1709305876263,-1360.34,0.00022356,2]
[315965677,1709305876279,-503.67,0.00022356,2]
[315965678,1709305876296,-500.0,0.00022356,2]
[315965679,1709305876309,-500.0,0.00022356,2]
[315965680,1709305876326,-543.27,0.00022356,2]
[315965681,1709305876344,-500.0,0.00022356,2]
[315965682,1709305876359,-151.0,0.00022356,7]
[315965683,1709305876375,-500.0,0.00022356,2]
[315965684,1709305876390,-655.83,0.00022356,2]
[315965685,1709305876407,-540.91,0.00022356,2]
[315965686,1709305876425,-500.0,0.00022356,2]
[315965687,1709305876436,-758.75,0.00022356,2]
[315965688,1709305876448,-1186.06,0.00022356,2]
[315965689,1709305876464,-1195.58,0.00022356,2]
[315965690,1709305876480,-817.92,0.00022356,2]
[315965691,1709305876494,-1397.92,0.00022356,2]
[315965692,1709305876505,-947.48,0.00022356,2]
[315965693,1709305876520,-500.0,0.00022356,2]
[315965694,1709305876533,-889.25,0.00022356,2]
[315965695,1709305876546,-500.0,0.00022356,2]
[315965696,1709305876559,-558.86,0.00022356,2]
[315965697,1709305876572,-654.16,0.00022356,2]
[315965698,1709305876585,-508.24,0.00022356,2]
[315965699,1709305876598,-928.68,0.00022356,2]
[315965700,1709305876610,-886.02,0.00022356,2]
[315965701,1709305876623,-500.0,0.00022356,2]
[315965702,1709305876636,-1331.87,0.00022356,2]
[315965703,1709305876648,-500.0,0.00022356,2]
[315965704,1709305876661,-2216.85,0.00022356,2]
[315965705,1709305876674,-1288.14,0.00022356,2]
[315965706,1709305876687,-1254.88,0.00022356,2]
[315965707,1709305876700,-500.0,0.00022356,2]
[315965708,1709305876713,-782.75,0.00022356,2]
[315965709,1709305876726,-500.0,0.00022356,2]
[315965710,1709305876738,-641.49,0.00022356,2]
[315965711,1709305876750,-1350.32,0.00022356,2]
[315965712,1709305876763,-985.98,0.00022356,2]
[315965713,1709305876776,-1905.1,0.00022356,2]
[315965714,1709305876788,-1197.98,0.00022356,2]
[315965715,1709305876801,-500.0,0.00022356,2]
[315965716,1709305876814,-500.0,0.00022356,2]
[315965717,1709305876827,-501.01,0.00022356,2]
[315965718,1709305876840,-1184.73,0.00022356,2]
[315965719,1709305876853,-500.0,0.00022356,2]
[315965720,1709305876866,-500.0,0.00022356,2]
[315965721,1709305876879,-934.94,0.00022356,2]
[315965722,1709305876892,-3329.36,0.00022356,2]
[315965723,1709305876905,-500.0,0.00022356,2]
[315965724,1709305876919,-1905.59,0.00022356,2]
[315965725,1709305876932,-500.0,0.00022356,2]
[315965726,1709305876945,-500.0,0.00022356,2]
[315965727,1709305876957,-266.67389061,0.00022356,2]
[315965728,1709305876970,-830.59,0.00022356,2]
[315965729,1709305876983,-555.78,0.00022356,2]
[315965730,1709305876997,-528.51,0.00022356,2]
[315965731,1709305877010,-1574.86,0.00022356,2]
[315965732,1709305877023,-1148.67,0.00022356,2]
[315965733,1709305877037,-924.56,0.00022356,2]
[315965734,1709305877050,-500.0,0.00022356,2]
[315965735,1709305877064,-765.51,0.00022356,2]
[315965736,1709305877076,-1684.51,0.00022356,2]
[315965737,1709305877089,-500.0,0.00022356,2]
[315965738,1709305877101,-604.09,0.00022356,2]
[315965739,1709305877114,-500.0,0.00022356,2]
[315965740,1709305877127,-873.4,0.00022356,2]
[315965741,1709305877140,-878.61,0.00022356,2]
[315965742,1709305877153,-847.29,0.00022356,2]
[315965743,1709305877166,-983.47,0.00022356,2]
[315965744,1709305877179,-500.0,0.00022356,2]
[315965745,1709305877192,-1114.24,0.00022356,2]
[315965746,1709305877206,-500.0,0.00022356,2]
[315965747,1709305877220,-721.29,0.00022356,2]
[315965748,1709305877233,-1667.9,0.00022356,2]
[315965749,1709305877245,-1455.8,0.00022356,2]
[315965750,1709305877259,-500.0,0.00022356,2]
[315965751,1709305877275,-500.0,0.00022356,2]
[315965752,1709305877288,-254.69506739,0.00022356,2]
[315965753,1709305877300,-500.0,0.00022356,2]
[315965754,1709305877313,-500.0,0.00022356,2]
[315965755,1709305877325,-500.0,0.00022356,2]
[315965756,1709305877338,-500.0,0.00022356,2]
[315965757,1709305877352,-500.0,0.00022356,2]
[315965758,1709305877364,-631.77,0.00022356,2]
[315965759,1709305877380,-5562.59,0.00022356,2]
[315965760,1709305877394,-500.0,0.00022356,2]
[315965761,1709305877406,-500.0,0.00022356,2]
[315965762,1709305877419,-5893.85,0.00022356,2]
[315965763,1709305877432,-500.0,0.00022356,2]
[315965764,1709305877445,-2262.48,0.00022356,2]
[315965765,1709305877457,-500.0,0.00022356,2]
[315965766,1709305877470,-500.0,0.00022356,2]
[315965767,1709305877482,-506.63,0.00022356,2]
[315965768,1709305877494,-500.0,0.00022356,2]
[315965769,1709305877509,-500.0,0.00022356,2]
[315965770,1709305877521,-500.0,0.00022356,2]
[315965771,1709305877535,-500.0,0.00022356,2]
[315965772,1709305877548,-634.29,0.00022356,2]
[315965773,1709305877561,-724.63,0.00022356,2]
[315965774,1709305877575,-7099.15,0.00022356,2]
[315965775,1709305877588,-1628.31,0.00022356,2]
[315965776,1709305877601,-557.5,0.00022356,2]
[315965777,1709305877615,-500.0,0.00022356,2]
[315965778,1709305877628,-500.0,0.00022356,2]
[315965779,1709305877641,-500.0,0.00022356,2]
[315965780,1709305877654,-500.0,0.00022356,2]
[315965781,1709305877667,-900.57,0.00022356,2]
[315965782,1709305877681,-500.0,0.00022356,2]
[315965783,1709305877693,-1308.47,0.00022356,2]
[315965784,1709305877706,-510.08,0.00022356,2]
[315965785,1709305877718,-5514.48,0.00022356,2]
[315965786,1709305877731,-500.0,0.00022356,2]
[315965787,1709305877744,-500.0,0.00022356,2]
[315965788,1709305877756,-380.76896557,0.00022356,2]
[315965789,1709305877771,-1631.28,0.00022356,2]
[315965790,1709305877783,-1607.91,0.00022356,2]
[315965791,1709305877795,-1979.13,0.00022356,2]
[315965792,1709305877807,-920.03,0.00022356,2]
[315965793,1709305877819,-500.0,0.00022356,2]
[315965794,1709305877832,-500.0,0.00022356,2]
[315965795,1709305877844,-500.0,0.00022356,2]
[315965796,1709305877856,-691.36,0.00022356,2]
[315965797,1709305877869,-500.0,0.00022356,2]
[315965798,1709305877881,-500.0,0.00022356,2]
[315965799,1709305877893,-567.34,0.00022356,2]
[315965800,1709305877906,-500.0,0.00022356,2]
[315965801,1709305877918,-500.0,0.00022356,2]
[315965802,1709305877931,-500.0,0.00022356,2]
[315965803,1709305877943,-2398.02,0.00022356,2]
[315965804,1709305877955,-199.69,0.00022379,2]
[315965805,1709305877967,-204.92,0.00022379,2]
[315965806,1709305877980,-175.91897246,0.000224,2]
[315965807,1709305877992,-204.15,0.00022427,2]
[315965808,1709305878005,-150.0,0.00022443,2]
[315965809,1709305878019,-239.99880894,0.00022449,3]
[315965810,1709305878033,-206.89978208,0.00022449,3]
[315965811,1709305878046,-284.80407176,0.00022449,3]
[315965812,1709305878059,-419.56333735,0.00022449,3]
[315965813,1709305878074,-1000.0,0.00022449,3]
[315965814,1709305878088,-482.22737266,0.00022449,3]
[315965815,1709305878103,-1000.0,0.00022449,3]
[315965816,1709305878119,-321.39350813,0.00022449,3]
[315965817,1709305878134,-1000.0,0.00022449,3]
[315965818,1709305878148,-396.31312486,0.00022449,3]
[315965819,1709305878162,-500.0,0.00022464,2]
[315965820,1709305878175,-150.0,0.00022464,2]
[315965821,1709305878189,-12118.51,0.00022465,2]
[315965822,1709305878203,-500.0,0.00022465,2]
[315965823,1709305878215,-500.0,0.00022465,2]
[315965824,1709305878225,-500.0,0.00022465,2]
[315965825,1709305878538,-500.0,0.00022465,2]
[315965826,1709305878558,-500.0,0.00022465,2]
[315965827,1709305878568,-500.0,0.00022465,2]
[315965828,1709305878578,-500.0,0.00022465,2]
[315965829,1709305878587,-500.0,0.00022465,2]
[315965830,1709305878597,-500.0,0.00022465,2]
[315965831,1709305878607,-500.0,0.00022465,2]
[315965832,1709305878616,-500.0,0.00022465,2]
[315965833,1709305878626,-500.0,0.00022465,2]
[315965834,1709305878635,-500.0,0.00022465,2]
[315965835,1709305878644,-500.0,0.00022465,2]
[315965836,1709305878654,-500.0,0.00022465,2]
[315965837,1709305878663,-500.0,0.00022465,2]
[315965838,1709305878673,-500.0,0.00022465,2]
[315965839,1709305878683,-500.0,0.00022465,2]
[315965840,1709305878692,-500.0,0.00022465,2]
[315965841,1709305878702,-500.0,0.00022465,2]
[315965842,1709305878712,-500.0,0.00022465,2]
[315965843,1709305878722,-500.0,0.00022465,2]
[315965844,1709305878733,-500.0,0.00022465,2]
[315965845,1709305878742,-500.0,0.00022465,2]
[315965846,1709305878751,-239.05746137,0.00022465,2]
[315965847,1709305878763,-500.0,0.00022465,2]
[315965848,1709305878772,-500.0,0.00022465,2]
[315965849,1709305878781,-500.0,0.00022465,2]
[315965850,1709305878791,-906.74,0.00022465,2]
[315965851,1709305878802,-500.0,0.00022465,2]
[315965852,1709305878811,-462.88101808,0.00022465,2]
[315965853,1709305878821,-500.0,0.00022465,2]
[315965854,1709305878831,-500.0,0.00022465,2]
[315965855,1709305878843,-500.0,0.00022465,2]
[315965856,1709305878854,-500.0,0.00022465,2]
[315965857,1709305878863,-500.0,0.00022465,2]
[315965858,1709305878873,-500.0,0.00022465,2]
[315965859,1709305878883,-500.0,0.00022465,2]
[315965860,1709305878892,-500.0,0.00022465,2]
[315965861,1709305878901,-500.0,0.00022465,2]
[315965862,1709305878911,-500.0,0.00022465,2]
[315965863,1709305878921,-500.0,0.00022465,2]
[315965864,1709305878930,-500.0,0.00022465,2]
[315965865,1709305878939,-500.0,0.00022465,2]
[315965866,1709305878949,-500.0,0.00022465,2]
[315965867,1709305878958,-500.0,0.00022465,2]
[315965868,1709305878967,-500.0,0.00022465,2]
[315965869,1709305878976,-500.0,0.00022465,2]
[315965870,1709305878985,-500.0,0.00022465,2]
[315965871,1709305878994,-500.0,0.00022465,2]
[315965872,1709305879004,-500.0,0.00022465,2]
[315965873,1709305879016,-534.1255094,0.00022465,2]
[315965874,1709305879025,-500.0,0.00022465,2]
[315965875,1709305879034,-500.0,0.00022465,2]
[315965876,1709305879044,-578.25,0.00022465,2]
[315965877,1709305879053,-500.0,0.00022465,2]
[315965878,1709305879062,-500.0,0.00022465,2]
[315965879,1709305879071,-500.0,0.00022465,2]
[315965880,1709305879080,-645.02,0.00022465,2]
[315965881,1709305879090,-500.0,0.00022465,2]
[315965882,1709305879099,-500.0,0.00022465,2]
[315965883,1709305879109,-751.68,0.00022465,2]
[315965884,1709305879118,-500.0,0.00022465,2]
[315965885,1709305879127,-500.0,0.00022465,2]
[315965886,1709305879137,-500.0,0.00022465,2]
[315965887,1709305879147,-500.0,0.00022465,2]
[315965888,1709305879156,-500.0,0.00022465,2]
[315965889,1709305879166,-500.0,0.00022465,2]
[315965890,1709305879175,-500.0,0.00022465,2]
[315965891,1709305879185,-500.0,0.00022465,2]
[315965892,1709305879195,-500.0,0.00022465,2]
[315965893,1709305879204,-296.75773048,0.00022465,2]
[315965894,1709305879214,-971.26,0.00022465,2]
[315965895,1709305879223,-500.0,0.00022465,2]
[315965896,1709305879232,-919.98,0.00022465,2]
[315965897,1709305879241,-500.0,0.00022465,2]
[315965898,1709305879251,-573.56,0.00022465,2]
[315965899,1709305879262,-500.0,0.00022465,2]
[315965900,1709305879271,-500.0,0.00022465,2]
[315965901,1709305879281,-500.0,0.00022465,2]
[315965902,1709305879290,-500.0,0.00022465,2]
[315965903,1709305879300,-500.0,0.00022465,2]
[315965904,1709305879309,-500.0,0.00022465,2]
[315965905,1709305879319,-737.77,0.00022465,2]
[315965906,1709305879328,-500.0,0.00022465,2]
[315965907,1709305879338,-518.80664391,0.00022465,2]
[315965908,1709305879348,-500.0,0.00022465,2]
[315965909,1709305879357,-500.0,0.00022465,2]
[315965910,1709305879367,-500.0,0.00022465,2]
[315965911,1709305879378,-500.0,0.00022465,2]
[315965912,1709305879387,-500.0,0.00022465,2]
[315965913,1709305879397,-782.71,0.00022465,2]
[315965914,1709305879407,-500.0,0.00022465,2]
[315965915,1709305879417,-500.0,0.00022465,2]
[315965916,1709305879426,-742.5,0.00022465,2]
[315965917,1709305879436,-500.0,0.00022465,2]
[315965918,1709305879445,-500.0,0.00022465,2]
[315965919,1709305879455,-500.0,0.00022465,2]
[315965920,1709305879466,-500.0,0.00022465,2]
[315965921,1709305879475,-516.61,0.00022465,2]
[315965922,1709305879484,-500.0,0.00022465,2]
[315965923,1709305879493,-500.0,0.00022465,2]
[315965924,1709305879503,-500.0,0.00022465,2]
[315965925,1709305879514,-500.0,0.00022465,2]
[315965926,1709305879524,-500.0,0.00022465,2]
[315965927,1709305879534,-500.0,0.00022465,2]
[315965928,1709305879544,-500.0,0.00022465,2]
[315965929,1709305879554,-500.0,0.00022465,2]
[315965930,1709305879563,-500.0,0.00022465,2]
[315965931,1709305879572,-563.36968213,0.00022465,2]
[315965932,1709305879582,-707.6,0.00022465,2]
[315965933,1709305879591,-780.2,0.00022465,2]
[315965934,1709305879601,-500.0,0.00022465,2]
[315965935,1709305879610,-500.0,0.00022465,2]
[315965936,1709305879621,-532.01466629,0.00022465,2]
[315965937,1709305879631,-500.0,0.00022465,2]
[315965938,1709305879641,-310.16383788,0.00022465,2]
[315965939,1709305879651,-500.0,0.00022465,2]
[315965940,1709305879661,-500.0,0.00022465,2]
[315965941,1709305879671,-500.0,0.00022465,2]
[315965942,1709305879680,-500.0,0.00022465,2]
[315965943,1709305879690,-504.09,0.00022465,2]
[315965944,1709305879699,-500.0,0.00022465,2]
[315965945,1709305879708,-500.0,0.00022465,2]
[315965946,1709305879718,-500.0,0.00022465,2]